[Event "Early-Titled-Tuesday-Blitz-February-13-2024"]
[Site "Chess.com"]
[Date "2024.02.13"]
[Round "1"]
[White "Radzio1987"]
[Black "DeArron_Fox"]
[Result "1-0"]
[WhiteElo "2910"]
[BlackElo "2502"]
[TimeControl "180+1"]
[EndTime "8:07:26 PST"]
[Termination "Radzio1987 won on time"]

1. c4 {[%clk 0:03:00.9]} 1... e6 {[%clk 0:02:32.8]} 2. Nc3 {[%clk 0:02:59.6]}
2... d5 {[%clk 0:02:29.2]} 3. d4 {[%clk 0:02:59.5]} 3... Nf6 {[%clk 0:02:25]} 4.
Bg5 {[%clk 0:02:57.7]} 4... Be7 {[%clk 0:02:24.3]} 5. e3 {[%clk 0:02:56.7]} 5...
O-O {[%clk 0:02:22.9]} 6. Rc1 {[%clk 0:02:54]} 6... b6 {[%clk 0:02:21.4]} 7.
cxd5 {[%clk 0:02:49.2]} 7... Nxd5 {[%clk 0:02:20.7]} 8. Bxe7 {[%clk 0:02:39.6]}
8... Qxe7 {[%clk 0:02:21]} 9. Nxd5 {[%clk 0:02:39.8]} 9... exd5 {[%clk
0:02:21.9]} 10. Ne2 {[%clk 0:02:39.9]} 10... Be6 {[%clk 0:02:14.5]} 11. Nf4
{[%clk 0:02:35.4]} 11... Rd8 {[%clk 0:02:06.5]} 12. Qc2 {[%clk 0:02:21.5]} 12...
c5 {[%clk 0:01:20]} 13. dxc5 {[%clk 0:02:20.6]} 13... Rc8 {[%clk 0:01:20.3]} 14.
Bd3 {[%clk 0:02:10.7]} 14... Rxc5 {[%clk 0:00:49.9]} 15. Qb1 {[%clk 0:02:10.6]}
15... Rxc1+ {[%clk 0:00:43.6]} 16. Qxc1 {[%clk 0:02:11.5]} 16... Nd7 {[%clk
0:00:43.1]} 17. O-O {[%clk 0:01:59.2]} 17... Nc5 {[%clk 0:00:28]} 18. Be2 {[%clk
0:01:54.8]} 18... Rc8 {[%clk 0:00:25.4]} 19. Qd2 {[%clk 0:01:55]} 19... Ne4
{[%clk 0:00:23.6]} 20. Qd4 {[%clk 0:01:53.4]} 20... Qc5 {[%clk 0:00:12.6]} 21.
Qe5 {[%clk 0:01:44.1]} 21... Qd6 {[%clk 0:00:07.6]} 22. Qd4 {[%clk 0:01:06.6]}
22... Qc5 {[%clk 0:00:06.5]} 23. Qa4 {[%clk 0:01:07.2]} 23... a5 {[%clk
0:00:02.5]} 24. Bd3 {[%clk 0:01:02.5]} 24... Qc6 {[%clk 0:00:02.6]} 25. Qd1
{[%clk 0:00:59.1]} 25... Nc5 {[%clk 0:00:02.6]} 26. Bb1 {[%clk 0:00:58.7]} 26...
g6 {[%clk 0:00:03.1]} 27. Qd4 {[%clk 0:00:58.6]} 27... Nd7 {[%clk 0:00:02.1]}
28. h4 {[%clk 0:00:57.7]} 28... Qc5 {[%clk 0:00:02.5]} 29. Qd2 {[%clk
0:00:57.9]} 29... Qb4 {[%clk 0:00:02.5]} 30. Qe2 {[%clk 0:00:57.2]} 30... d4
{[%clk 0:00:02.9]} 31. exd4 {[%clk 0:00:56]} 31... Bc4 {[%clk 0:00:02.6]} 32.
Qc2 {[%clk 0:00:50.1]} 32... Re8 {[%clk 0:00:03.1]} 33. Rc1 {[%clk 0:00:46.4]}
33... Bb5 {[%clk 0:00:03.7]} 34. Qc3 {[%clk 0:00:45.3]} 34... Qd6 {[%clk
0:00:03.8]} 35. g3 {[%clk 0:00:43.3]} 35... Nf6 {[%clk 0:00:04]} 36. d5 {[%clk
0:00:39.7]} 36... Nxd5 {[%clk 0:00:03.3]} 37. Qd4 {[%clk 0:00:40]} 37... Rd8
{[%clk 0:00:02.5]} 38. Rd1 {[%clk 0:00:39.8]} 38... Bc6 {[%clk 0:00:02.3]} 39.
Be4 {[%clk 0:00:39.7]} 39... Nxf4 {[%clk 0:00:02.7]} 40. Qxd6 {[%clk 0:00:39.1]}
40... Nh3+ {[%clk 0:00:02.3]} 41. Kh2 {[%clk 0:00:36.5]} 41... Rxd6 {[%clk
0:00:01.9]} 42. Rxd6 {[%clk 0:00:37.4]} 42... Bxe4 {[%clk 0:00:01.9]} 43. Kxh3
{[%clk 0:00:37.7]} 43... Bf5+ {[%clk 0:00:01.4]} 44. Kg2 {[%clk 0:00:37.5]}
44... b5 {[%clk 0:00:02.3]} 45. a3 {[%clk 0:00:35]} 45... a4 {[%clk 0:00:01.8]}
46. f3 {[%clk 0:00:35.1]} 46... Bd3 {[%clk 0:00:02.2]} 47. Rxd3 {[%clk 0:00:34]}
1-0

[Event "Early-Titled-Tuesday-Blitz-February-13-2024"]
[Site "Chess.com"]
[Date "2024.02.13"]
[Round "1"]
[White "OhanyanEminChess"]
[Black "el_sporco"]
[Result "1-0"]
[WhiteElo "2802"]
[BlackElo "2442"]
[TimeControl "180+1"]
[EndTime "8:07:27 PST"]
[Termination "OhanyanEminChess won by checkmate"]

1. e4 {[%clk 0:03:00.9]} 1... c5 {[%clk 0:02:50.2]} 2. a3 {[%clk 0:02:58.6]}
2... g6 {[%clk 0:02:46.1]} 3. Nf3 {[%clk 0:02:56.6]} 3... Bg7 {[%clk 0:02:45.6]}
4. Nc3 {[%clk 0:02:56.8]} 4... Nc6 {[%clk 0:02:45.1]} 5. Bc4 {[%clk 0:02:54.9]}
5... d6 {[%clk 0:02:12.8]} 6. h3 {[%clk 0:02:49.9]} 6... Nf6 {[%clk 0:02:12.3]}
7. d3 {[%clk 0:02:47.3]} 7... O-O {[%clk 0:02:11.9]} 8. O-O {[%clk 0:02:46.4]}
8... a6 {[%clk 0:02:08.5]} 9. Bg5 {[%clk 0:02:46.3]} 9... b5 {[%clk 0:02:03.6]}
10. Ba2 {[%clk 0:02:46.1]} 10... h6 {[%clk 0:01:56.9]} 11. Be3 {[%clk
0:02:44.5]} 11... Bb7 {[%clk 0:01:38.4]} 12. Qd2 {[%clk 0:02:41.2]} 12... Kh7
{[%clk 0:01:37.6]} 13. Rae1 {[%clk 0:02:39.7]} 13... Nd7 {[%clk 0:01:24.9]} 14.
Nh2 {[%clk 0:02:33.2]} 14... Nd4 {[%clk 0:01:24]} 15. Nd1 {[%clk 0:02:28.2]}
15... a5 {[%clk 0:01:18.8]} 16. c3 {[%clk 0:02:25.6]} 16... Nc6 {[%clk
0:01:18.2]} 17. f4 {[%clk 0:02:16]} 17... b4 {[%clk 0:01:17.5]} 18. f5 {[%clk
0:02:05.5]} 18... a4 {[%clk 0:00:53.6]} 19. axb4 {[%clk 0:00:58.6]} 19... cxb4
{[%clk 0:00:50.6]} 20. cxb4 {[%clk 0:00:59.5]} 20... a3 {[%clk 0:00:40.4]} 21.
bxa3 {[%clk 0:01:00.4]} 21... Rxa3 {[%clk 0:00:40.2]} 22. Bd5 {[%clk 0:00:27.6]}
22... Nb6 {[%clk 0:00:35.7]} 23. Bxc6 {[%clk 0:00:18.6]} 23... Bxc6 {[%clk
0:00:36]} 24. Qc1 {[%clk 0:00:19.5]} 24... Qa8 {[%clk 0:00:25.3]} 25. Bxb6
{[%clk 0:00:18.9]} 25... Rxd3 {[%clk 0:00:21.9]} 26. Nf2 {[%clk 0:00:12.7]}
26... Rc3 {[%clk 0:00:19.9]} 27. Qd1 {[%clk 0:00:08.8]} 27... gxf5 {[%clk
0:00:19.8]} 28. Bd4 {[%clk 0:00:05]} 28... Bxd4 {[%clk 0:00:10.2]} 29. Qxd4
{[%clk 0:00:05.9]} 29... Rc2 {[%clk 0:00:10.8]} 30. Rc1 {[%clk 0:00:02.7]} 30...
Rxc1 {[%clk 0:00:05.5]} 31. Rxc1 {[%clk 0:00:03.6]} 31... fxe4 {[%clk
0:00:05.8]} 32. Nhg4 {[%clk 0:00:03.3]} 32... f5 {[%clk 0:00:04.9]} 33. Qe3
{[%clk 0:00:02.7]} 33... fxg4 {[%clk 0:00:04.5]} 34. Nxg4 {[%clk 0:00:03.6]}
34... Rg8 {[%clk 0:00:03.2]} 35. Qxh6# {[%clk 0:00:03.7]} 1-0

[Event "Early-Titled-Tuesday-Blitz-February-13-2024"]
[Site "Chess.com"]
[Date "2024.02.13"]
[Round "1"]
[White "BogdanDeac"]
[Black "bulletteemo"]
[Result "1-0"]
[WhiteElo "3001"]
[BlackElo "2535"]
[TimeControl "180+1"]
[EndTime "8:07:28 PST"]
[Termination "BogdanDeac won by resignation"]

1. b3 {[%clk 0:03:00.9]} 1... e5 {[%clk 0:02:52.7]} 2. Bb2 {[%clk 0:03:01.8]}
2... Nc6 {[%clk 0:02:52.8]} 3. Nf3 {[%clk 0:03:01.8]} 3... e4 {[%clk 0:02:43.4]}
4. Nd4 {[%clk 0:03:01.8]} 4... Nxd4 {[%clk 0:02:41.7]} 5. Bxd4 {[%clk
0:03:02.7]} 5... Nf6 {[%clk 0:02:41.5]} 6. c4 {[%clk 0:03:01.1]} 6... d5 {[%clk
0:02:34.8]} 7. e3 {[%clk 0:02:56.2]} 7... c5 {[%clk 0:02:32.7]} 8. Bxf6 {[%clk
0:02:55.6]} 8... Qxf6 {[%clk 0:02:32.4]} 9. Nc3 {[%clk 0:02:56.2]} 9... d4
{[%clk 0:02:19.4]} 10. Nxe4 {[%clk 0:02:44.5]} 10... Qe5 {[%clk 0:02:19.3]} 11.
Ng3 {[%clk 0:02:14.8]} 11... h5 {[%clk 0:02:12.3]} 12. f4 {[%clk 0:02:11.4]}
12... Qf6 {[%clk 0:02:01.8]} 13. Be2 {[%clk 0:01:46.5]} 13... h4 {[%clk
0:01:42.8]} 14. Ne4 {[%clk 0:01:46.3]} 14... Qe7 {[%clk 0:01:35.8]} 15. Qc2
{[%clk 0:01:23.9]} 15... g6 {[%clk 0:01:22.7]} 16. O-O {[%clk 0:01:12.3]} 16...
Bg7 {[%clk 0:01:22.6]} 17. Rae1 {[%clk 0:01:11.4]} 17... O-O {[%clk 0:01:09.9]}
18. Bd3 {[%clk 0:01:04.6]} 18... Bf5 {[%clk 0:00:43.9]} 19. Ng5 {[%clk
0:01:01.8]} 19... Bxd3 {[%clk 0:00:38.7]} 20. Qxd3 {[%clk 0:01:01.4]} 20... dxe3
{[%clk 0:00:37.6]} 21. dxe3 {[%clk 0:00:59.9]} 21... Rad8 {[%clk 0:00:35.6]} 22.
Qc2 {[%clk 0:00:59.9]} 22... Rd7 {[%clk 0:00:30.2]} 23. Qf2 {[%clk 0:00:54.7]}
23... Rfd8 {[%clk 0:00:11]} 24. Qxh4 {[%clk 0:00:37.2]} 24... Rd2 {[%clk
0:00:11.4]} 25. Rf2 {[%clk 0:00:37.5]} 25... Rd1 {[%clk 0:00:11]} 26. Re2 {[%clk
0:00:35.1]} 26... Bc3 {[%clk 0:00:08.5]} 27. Rxd1 {[%clk 0:00:30]} 27... Rxd1+
{[%clk 0:00:09.3]} 28. Kf2 {[%clk 0:00:29.8]} 28... a5 {[%clk 0:00:05.6]} 29.
Qh3 {[%clk 0:00:17.9]} 29... b6 {[%clk 0:00:04.3]} 30. Qg4 {[%clk 0:00:12.3]}
30... Bd2 {[%clk 0:00:02.3]} 31. Nf3 {[%clk 0:00:08.7]} 31... Bc3 {[%clk
0:00:02.2]} 32. Qc8+ {[%clk 0:00:08.4]} 32... Kg7 {[%clk 0:00:02.2]} 33. Qc6
{[%clk 0:00:09]} 33... a4 {[%clk 0:00:01.5]} 34. Qxb6 {[%clk 0:00:07.2]} 34...
axb3 {[%clk 0:00:01.5]} 35. Qxb3 {[%clk 0:00:06.8]} 35... Bf6 {[%clk 0:00:02.4]}
36. Qxd1 {[%clk 0:00:06.6]} 1-0

[Event "Early-Titled-Tuesday-Blitz-February-13-2024"]
[Site "Chess.com"]
[Date "2024.02.13"]
[Round "1"]
[White "Elnaz_Kaliakhmet"]
[Black "AdvanceGuard4"]
[Result "1-0"]
[WhiteElo "2295"]
[BlackElo "2609"]
[TimeControl "180+1"]
[EndTime "8:07:28 PST"]
[Termination "Elnaz_Kaliakhmet won by checkmate"]

1. d4 {[%clk 0:02:56.7]} 1... Nf6 {[%clk 0:03:00.4]} 2. c4 {[%clk 0:02:55.8]}
2... e6 {[%clk 0:02:52.3]} 3. Nf3 {[%clk 0:02:55]} 3... c5 {[%clk 0:02:52.9]} 4.
d5 {[%clk 0:02:52.9]} 4... exd5 {[%clk 0:02:52.9]} 5. cxd5 {[%clk 0:02:52.1]}
5... d6 {[%clk 0:02:53.8]} 6. Nc3 {[%clk 0:02:51.1]} 6... g6 {[%clk 0:02:54.5]}
7. e4 {[%clk 0:02:51.3]} 7... Bg7 {[%clk 0:02:55]} 8. h3 {[%clk 0:02:52]} 8...
O-O {[%clk 0:02:55.6]} 9. Bd3 {[%clk 0:02:52.4]} 9... b5 {[%clk 0:02:55.2]} 10.
Nxb5 {[%clk 0:02:52.3]} 10... Nxe4 {[%clk 0:02:50.7]} 11. Bxe4 {[%clk
0:02:51.8]} 11... Qa5+ {[%clk 0:02:50.4]} 12. Nc3 {[%clk 0:02:50.9]} 12... Re8
{[%clk 0:02:31.9]} 13. Ng5 {[%clk 0:02:47.8]} 13... h6 {[%clk 0:02:26.5]} 14.
Ne6 {[%clk 0:02:44.8]} 14... fxe6 {[%clk 0:02:24.8]} 15. O-O {[%clk 0:02:36.7]}
15... Bb7 {[%clk 0:02:05.2]} 16. Bxg6 {[%clk 0:02:34.8]} 16... Re7 {[%clk
0:02:02]} 17. dxe6 {[%clk 0:02:26.9]} 17... Rxe6 {[%clk 0:01:47]} 18. Qh5 {[%clk
0:02:27]} 18... Qc7 {[%clk 0:01:21.8]} 19. Bxh6 {[%clk 0:02:04.9]} 19... Bxh6
{[%clk 0:01:09.8]} 20. Qxh6 {[%clk 0:02:05.8]} 20... Qg7 {[%clk 0:01:04.3]} 21.
Qxg7+ {[%clk 0:01:40.3]} 21... Kxg7 {[%clk 0:01:05.2]} 22. Bf5 {[%clk
0:01:40.8]} 22... Re5 {[%clk 0:01:02.4]} 23. g4 {[%clk 0:01:28.5]} 23... Na6
{[%clk 0:00:51.2]} 24. Rad1 {[%clk 0:01:19.3]} 24... Rd8 {[%clk 0:00:51.2]} 25.
f4 {[%clk 0:01:16.4]} 25... Re3 {[%clk 0:00:49]} 26. Rfe1 {[%clk 0:01:05.2]}
26... Rg3+ {[%clk 0:00:45.4]} 27. Kf2 {[%clk 0:01:05.6]} 27... Rg2+ {[%clk
0:00:37.1]} 28. Kf1 {[%clk 0:01:05.4]} 28... Rxb2 {[%clk 0:00:34.3]} 29. Re7+
{[%clk 0:00:53.2]} 29... Kf6 {[%clk 0:00:34]} 30. Re6+ {[%clk 0:00:51.3]} 30...
Kf7 {[%clk 0:00:34.6]} 31. Rde1 {[%clk 0:00:49.1]} 31... Bg2+ {[%clk 0:00:25.1]}
32. Kg1 {[%clk 0:00:48.2]} 32... Bxh3 {[%clk 0:00:24.5]} 33. Re7+ {[%clk
0:00:36.1]} 33... Kf8 {[%clk 0:00:24.6]} 34. Rh7 {[%clk 0:00:31.4]} 34... Kg8
{[%clk 0:00:07.9]} 35. Rxh3 {[%clk 0:00:30]} 35... Nb4 {[%clk 0:00:06.9]} 36.
Re7 {[%clk 0:00:23.4]} 36... Nxa2 {[%clk 0:00:01.6]} 37. Nxa2 {[%clk 0:00:22.9]}
37... Rxa2 {[%clk 0:00:02.5]} 38. Be6+ {[%clk 0:00:22.2]} 38... Kf8 {[%clk
0:00:02.6]} 39. Rf7+ {[%clk 0:00:22.6]} 39... Ke8 {[%clk 0:00:03.2]} 40. Rh8#
{[%clk 0:00:21.9]} 1-0

[Event "Early-Titled-Tuesday-Blitz-February-13-2024"]
[Site "Chess.com"]
[Date "2024.02.13"]
[Round "1"]
[White "Sychev_Klementy"]
[Black "secrethawk1"]
[Result "1-0"]
[WhiteElo "2906"]
[BlackElo "2501"]
[TimeControl "180+1"]
[EndTime "8:07:29 PST"]
[Termination "Sychev_Klementy won on time"]

1. e4 {[%clk 0:03:00.9]} 1... c5 {[%clk 0:02:57.8]} 2. Nf3 {[%clk 0:03:00.7]}
2... e6 {[%clk 0:02:57.4]} 3. d4 {[%clk 0:02:59.6]} 3... cxd4 {[%clk 0:02:58.3]}
4. Nxd4 {[%clk 0:03:00.2]} 4... a6 {[%clk 0:02:57.9]} 5. Bd3 {[%clk 0:02:59.8]}
5... Bc5 {[%clk 0:02:57.1]} 6. Nb3 {[%clk 0:02:59.4]} 6... Ba7 {[%clk
0:02:54.7]} 7. Qg4 {[%clk 0:02:57.4]} 7... Nf6 {[%clk 0:02:51.6]} 8. Qg3 {[%clk
0:02:57.4]} 8... d6 {[%clk 0:02:37.1]} 9. Nc3 {[%clk 0:02:54.5]} 9... Nc6 {[%clk
0:02:34.6]} 10. Bg5 {[%clk 0:02:54.5]} 10... h6 {[%clk 0:02:31.7]} 11. Bd2
{[%clk 0:02:53.5]} 11... Qe7 {[%clk 0:02:22.5]} 12. O-O-O {[%clk 0:02:48.8]}
12... Bd7 {[%clk 0:02:18.8]} 13. Qxg7 {[%clk 0:02:29.1]} 13... Rg8 {[%clk
0:02:01.6]} 14. Qxh6 {[%clk 0:02:28.5]} 14... Ng4 {[%clk 0:02:01.2]} 15. Qf4
{[%clk 0:01:31.6]} 15... Nxf2 {[%clk 0:01:56.2]} 16. g3 {[%clk 0:01:25.2]} 16...
Nxh1 {[%clk 0:01:51.1]} 17. Rxh1 {[%clk 0:01:24.4]} 17... O-O-O {[%clk
0:01:46.7]} 18. Be2 {[%clk 0:01:22]} 18... Rdf8 {[%clk 0:01:26.1]} 19. g4 {[%clk
0:01:15.8]} 19... f6 {[%clk 0:01:08.5]} 20. h4 {[%clk 0:01:10.9]} 20... Ne5
{[%clk 0:01:03.7]} 21. h5 {[%clk 0:01:06.4]} 21... Rf7 {[%clk 0:00:56.7]} 22. h6
{[%clk 0:01:01.2]} 22... Rh7 {[%clk 0:00:56.2]} 23. Rf1 {[%clk 0:00:55.8]} 23...
Rg6 {[%clk 0:00:50.7]} 24. Kb1 {[%clk 0:00:41.3]} 24... Rgxh6 {[%clk 0:00:45.7]}
25. g5 {[%clk 0:00:29.8]} 25... fxg5 {[%clk 0:00:42.7]} 26. Qf8+ {[%clk
0:00:19.4]} 26... Qxf8 {[%clk 0:00:42.5]} 27. Rxf8+ {[%clk 0:00:20.1]} 27... Kc7
{[%clk 0:00:40.4]} 28. Bxg5 {[%clk 0:00:20]} 28... Rh1+ {[%clk 0:00:37.6]} 29.
Bd1 {[%clk 0:00:19.6]} 29... b5 {[%clk 0:00:25.7]} 30. Bd8+ {[%clk 0:00:18.5]}
30... Kc6 {[%clk 0:00:19]} 31. Na5+ {[%clk 0:00:18]} 31... Kc5 {[%clk
0:00:18.7]} 32. a3 {[%clk 0:00:17]} 32... Rh8 {[%clk 0:00:10.9]} 33. Rf4 {[%clk
0:00:14.6]} 33... Rxd8 {[%clk 0:00:06]} 34. Nb7+ {[%clk 0:00:14.5]} 34... Kd4
{[%clk 0:00:03]} 35. Nxd8 {[%clk 0:00:14.5]} 35... Ke3 {[%clk 0:00:02.7]} 36.
Rf6 {[%clk 0:00:13.3]} 36... Kd2 {[%clk 0:00:01.2]} 37. Ka2 {[%clk 0:00:12.8]}
1-0

[Event "Early-Titled-Tuesday-Blitz-February-13-2024"]
[Site "Chess.com"]
[Date "2024.02.13"]
[Round "1"]
[White "KetiTsatsalashvili"]
[Black "Dyadya81"]
[Result "1-0"]
[WhiteElo "2477"]
[BlackElo "2809"]
[TimeControl "180+1"]
[EndTime "8:07:29 PST"]
[Termination "KetiTsatsalashvili won on time"]

1. d4 {[%clk 0:03:00.9]} 1... Nf6 {[%clk 0:02:58.9]} 2. Nf3 {[%clk 0:03:00.7]}
2... g6 {[%clk 0:02:56.8]} 3. c4 {[%clk 0:02:59.9]} 3... Bg7 {[%clk 0:02:57.1]}
4. Nc3 {[%clk 0:03:00.5]} 4... d6 {[%clk 0:02:57.5]} 5. e4 {[%clk 0:03:00.9]}
5... O-O {[%clk 0:02:57.4]} 6. Be2 {[%clk 0:03:01.6]} 6... e5 {[%clk 0:02:58]}
7. O-O {[%clk 0:03:00.9]} 7... exd4 {[%clk 0:02:55.8]} 8. Nxd4 {[%clk
0:03:00.3]} 8... Re8 {[%clk 0:02:56.6]} 9. f3 {[%clk 0:03:00.8]} 9... c6 {[%clk
0:02:56.6]} 10. Bg5 {[%clk 0:02:59.3]} 10... h6 {[%clk 0:02:54.1]} 11. Bh4
{[%clk 0:02:55.3]} 11... d5 {[%clk 0:02:49.6]} 12. cxd5 {[%clk 0:02:54.9]} 12...
cxd5 {[%clk 0:02:48.4]} 13. Nxd5 {[%clk 0:02:33.5]} 13... g5 {[%clk 0:02:45.2]}
14. Nxf6+ {[%clk 0:02:30.5]} 14... Qxf6 {[%clk 0:02:44.5]} 15. Bf2 {[%clk
0:02:31.1]} 15... Rd8 {[%clk 0:02:44.3]} 16. Qc2 {[%clk 0:02:22]} 16... Na6
{[%clk 0:02:29.5]} 17. Rfd1 {[%clk 0:02:16.2]} 17... g4 {[%clk 0:02:24.5]} 18.
Rac1 {[%clk 0:02:13.1]} 18... gxf3 {[%clk 0:02:23.5]} 19. Nxf3 {[%clk
0:02:04.7]} 19... Be6 {[%clk 0:02:17.2]} 20. e5 {[%clk 0:01:59.9]} 20... Qf4
{[%clk 0:02:12.2]} 21. Rxd8+ {[%clk 0:01:51.3]} 21... Rxd8 {[%clk 0:02:10.9]}
22. a3 {[%clk 0:01:37.9]} 22... Bb3 {[%clk 0:01:37]} 23. Qc3 {[%clk 0:01:30]}
23... Bd5 {[%clk 0:01:31.8]} 24. Rd1 {[%clk 0:01:23.8]} 24... Qe4 {[%clk
0:01:16.5]} 25. Bd3 {[%clk 0:01:15.8]} 25... Qa4 {[%clk 0:01:15.1]} 26. Bc2
{[%clk 0:01:13.3]} 26... Qb5 {[%clk 0:01:09.6]} 27. Be4 {[%clk 0:01:00.2]} 27...
Bf8 {[%clk 0:00:53.6]} 28. a4 {[%clk 0:00:36.8]} 28... Bxe4 {[%clk 0:00:24.3]}
29. Rxd8 {[%clk 0:00:22.9]} 29... Qxa4 {[%clk 0:00:23.9]} 30. Bc5 {[%clk
0:00:15.6]} 30... Qa1+ {[%clk 0:00:08.8]} 31. Kf2 {[%clk 0:00:15.3]} 31... Nxc5
{[%clk 0:00:07.4]} 32. Qxc5 {[%clk 0:00:15.5]} 32... Qxb2+ {[%clk 0:00:07.2]}
33. Kg3 {[%clk 0:00:15.8]} 33... Kh7 {[%clk 0:00:01.7]} 34. Qxf8 {[%clk
0:00:15.5]} 1-0

[Event "Early-Titled-Tuesday-Blitz-February-13-2024"]
[Site "Chess.com"]
[Date "2024.02.13"]
[Round "1"]
[White "oneshot007"]
[Black "SirGerhard"]
[Result "0-1"]
[WhiteElo "2442"]
[BlackElo "2799"]
[TimeControl "180+1"]
[EndTime "8:07:29 PST"]
[Termination "SirGerhard won by resignation"]

1. e4 {[%clk 0:03:00.9]} 1... c5 {[%clk 0:02:59.5]} 2. Nf3 {[%clk 0:03:01.1]}
2... d6 {[%clk 0:02:59.7]} 3. Bb5+ {[%clk 0:02:55.8]} 3... Nd7 {[%clk
0:02:59.5]} 4. O-O {[%clk 0:02:53.9]} 4... Nf6 {[%clk 0:02:59.9]} 5. Re1 {[%clk
0:02:52.6]} 5... a6 {[%clk 0:02:59.8]} 6. Bd3 {[%clk 0:02:51.3]} 6... b5 {[%clk
0:02:55.7]} 7. c4 {[%clk 0:02:49.4]} 7... Rb8 {[%clk 0:02:48.2]} 8. cxb5 {[%clk
0:02:38]} 8... axb5 {[%clk 0:02:47.8]} 9. Bf1 {[%clk 0:02:28.6]} 9... e5 {[%clk
0:02:22.4]} 10. Qb3 {[%clk 0:02:03.3]} 10... c4 {[%clk 0:02:13.9]} 11. Qd1
{[%clk 0:01:54.3]} 11... Be7 {[%clk 0:02:09.2]} 12. b3 {[%clk 0:01:54]} 12...
cxb3 {[%clk 0:02:06.2]} 13. axb3 {[%clk 0:01:54.9]} 13... O-O {[%clk 0:01:53.9]}
14. d4 {[%clk 0:01:55]} 14... exd4 {[%clk 0:01:38]} 15. Nxd4 {[%clk 0:01:55.9]}
15... Bb7 {[%clk 0:01:23.5]} 16. f3 {[%clk 0:01:38.8]} 16... b4 {[%clk
0:01:09.1]} 17. Kh1 {[%clk 0:01:23.2]} 17... g6 {[%clk 0:01:02.4]} 18. Bh6
{[%clk 0:01:19.6]} 18... Re8 {[%clk 0:01:02.1]} 19. Nd2 {[%clk 0:01:20.1]} 19...
Ne5 {[%clk 0:01:01.2]} 20. Nc4 {[%clk 0:01:18.7]} 20... Nfd7 {[%clk 0:00:45.6]}
21. Nb5 {[%clk 0:01:00]} 21... Nxc4 {[%clk 0:00:37.9]} 22. Bxc4 {[%clk
0:01:00.9]} 22... Ne5 {[%clk 0:00:37.6]} 23. Qd4 {[%clk 0:00:30.6]} 23... Bc6
{[%clk 0:00:31.2]} 24. Na7 {[%clk 0:00:22.9]} 24... Bf6 {[%clk 0:00:31.2]} 25.
Ra6 {[%clk 0:00:14.4]} 25... Nxf3 {[%clk 0:00:17]} 26. Nxc6 {[%clk 0:00:14.8]}
26... Nxd4 {[%clk 0:00:16.3]} 27. Nxd8 {[%clk 0:00:15.2]} 27... Rbxd8 {[%clk
0:00:16.5]} 28. Ra7 {[%clk 0:00:14.6]} 28... Re7 {[%clk 0:00:16.4]} 29. Rxe7
{[%clk 0:00:13.4]} 29... Bxe7 {[%clk 0:00:16.9]} 30. e5 {[%clk 0:00:13.8]} 30...
d5 {[%clk 0:00:16.1]} 31. Bd3 {[%clk 0:00:12.5]} 31... Nxb3 {[%clk 0:00:15.2]}
32. e6 {[%clk 0:00:13]} 32... f5 {[%clk 0:00:15]} 33. h3 {[%clk 0:00:12.2]}
33... Nc5 {[%clk 0:00:15.4]} 34. Bb5 {[%clk 0:00:11.8]} 34... d4 {[%clk
0:00:15.2]} 35. Rc1 {[%clk 0:00:11.1]} 35... d3 {[%clk 0:00:15]} 36. Bd2 {[%clk
0:00:10.1]} 36... Ne4 {[%clk 0:00:14.6]} 37. Be3 {[%clk 0:00:08.4]} 37... d2
{[%clk 0:00:14.1]} 38. Rd1 {[%clk 0:00:08.9]} 38... b3 {[%clk 0:00:14]} 39. Bd7
{[%clk 0:00:09.8]} 39... b2 {[%clk 0:00:13.3]} 40. Rb1 {[%clk 0:00:09.6]} 40...
Nc3 {[%clk 0:00:12.1]} 0-1

[Event "Early-Titled-Tuesday-Blitz-February-13-2024"]
[Site "Chess.com"]
[Date "2024.02.13"]
[Round "1"]
[White "SmirnovAlexandrA"]
[Black "VeraVujovic"]
[Result "1-0"]
[WhiteElo "2610"]
[BlackElo "2245"]
[TimeControl "180+1"]
[EndTime "8:07:30 PST"]
[Termination "SmirnovAlexandrA won on time"]

1. e4 {[%clk 0:02:57.8]} 1... d5 {[%clk 0:03:00.4]} 2. exd5 {[%clk 0:02:57.4]}
2... Nf6 {[%clk 0:03:00.5]} 3. d4 {[%clk 0:02:52.7]} 3... Nxd5 {[%clk
0:02:59.9]} 4. c4 {[%clk 0:02:52.9]} 4... Nf6 {[%clk 0:02:59.7]} 5. Nc3 {[%clk
0:02:52.9]} 5... Bf5 {[%clk 0:02:55.7]} 6. Nf3 {[%clk 0:02:50.7]} 6... e6 {[%clk
0:02:55.9]} 7. g3 {[%clk 0:02:50]} 7... Be7 {[%clk 0:02:47.1]} 8. Bg2 {[%clk
0:02:49.8]} 8... c6 {[%clk 0:02:45.8]} 9. O-O {[%clk 0:02:49.4]} 9... O-O {[%clk
0:02:45.8]} 10. Re1 {[%clk 0:02:45.1]} 10... Na6 {[%clk 0:02:39.7]} 11. Nh4
{[%clk 0:02:33.1]} 11... Bg4 {[%clk 0:02:32.7]} 12. Qb3 {[%clk 0:02:24.7]} 12...
Rb8 {[%clk 0:01:52.9]} 13. h3 {[%clk 0:02:10.3]} 13... Bh5 {[%clk 0:01:49]} 14.
g4 {[%clk 0:02:10.3]} 14... Nd7 {[%clk 0:01:17.8]} 15. gxh5 {[%clk 0:01:49.1]}
15... Bxh4 {[%clk 0:01:16.9]} 16. h6 {[%clk 0:01:49.4]} 16... g6 {[%clk
0:01:11.7]} 17. Ne4 {[%clk 0:01:41.9]} 17... Nf6 {[%clk 0:01:06.6]} 18. Bf4
{[%clk 0:01:37]} 18... Qxd4 {[%clk 0:00:37.9]} 19. Rad1 {[%clk 0:01:12.4]} 19...
Bxf2+ {[%clk 0:00:35.2]} 20. Kh1 {[%clk 0:01:02.6]} 20... Nc5 {[%clk 0:00:20.3]}
21. Qa3 {[%clk 0:00:53.3]} 21... Qxc4 {[%clk 0:00:16.4]} 22. Nxf6+ {[%clk
0:00:51.5]} 22... Kh8 {[%clk 0:00:16.7]} 23. Bxb8 {[%clk 0:00:38.9]} 23... Rxb8
{[%clk 0:00:08.3]} 24. Rf1 {[%clk 0:00:30.2]} 24... Bh4 {[%clk 0:00:08.2]} 25.
Qc3 {[%clk 0:00:24.9]} 25... Qxc3 {[%clk 0:00:06.8]} 26. bxc3 {[%clk 0:00:25.8]}
26... b5 {[%clk 0:00:04.7]} 27. Bxc6 {[%clk 0:00:23.1]} 27... Na4 {[%clk
0:00:03.8]} 28. Nd7 {[%clk 0:00:20.3]} 28... Nxc3 {[%clk 0:00:03.5]} 29. Nxb8
{[%clk 0:00:19.7]} 29... Nxd1 {[%clk 0:00:03.7]} 30. Rxd1 {[%clk 0:00:20.6]}
30... Kg8 {[%clk 0:00:02.3]} 31. Bxb5 {[%clk 0:00:19.1]} 31... f5 {[%clk
0:00:02.6]} 32. Nc6 {[%clk 0:00:18.5]} 32... Kf7 {[%clk 0:00:03.5]} 33. Nxa7
{[%clk 0:00:18.7]} 33... Kf6 {[%clk 0:00:04.2]} 34. a4 {[%clk 0:00:19.3]} 34...
Bf2 {[%clk 0:00:04.5]} 35. Nc6 {[%clk 0:00:18.1]} 35... e5 {[%clk 0:00:04.9]}
36. a5 {[%clk 0:00:18.5]} 36... e4 {[%clk 0:00:05]} 37. a6 {[%clk 0:00:18.9]}
37... f4 {[%clk 0:00:04.8]} 38. Nd4 {[%clk 0:00:19.1]} 1-0